[Event "*** Titled Tuesday Blitz"]
[Site "Chess.com"]
[Date "2019.05.07"]
[Round "1"]
[White "joppie2"]
[Black "LiamVrolijk"]
[Result "0-1"]
[WhiteElo "2754"]
[BlackElo "2468"]
[TimeControl "180+2"]
[EndTime "13:08:52 PDT"]
[Termination "LiamVrolijk won by resignation"]

1. e4 {[%clk 0:02:59.5]} 1... e5 {[%clk 0:02:58.4]} 2. Nf3 {[%clk 0:03:00.8]}
2... Nc6 {[%clk 0:02:59.8]} 3. Bb5 {[%clk 0:03:02.2]} 3... Nf6 {[%clk
0:03:00.3]} 4. d3 {[%clk 0:03:03.6]} 4... Bc5 {[%clk 0:03:01.6]} 5. c3 {[%clk
0:03:04.8]} 5... O-O {[%clk 0:03:02.4]} 6. Bg5 {[%clk 0:03:04.3]} 6... h6 {[%clk
0:03:02.6]} 7. Bh4 {[%clk 0:03:05.3]} 7... Be7 {[%clk 0:03:03.9]} 8. O-O {[%clk
0:03:04.4]} 8... d6 {[%clk 0:03:04.6]} 9. Nbd2 {[%clk 0:02:59.2]} 9... Nh7
{[%clk 0:02:44.5]} 10. Bg3 {[%clk 0:02:53.3]} 10... Ng5 {[%clk 0:02:46]} 11. h3
{[%clk 0:02:49.5]} 11... Nxf3+ {[%clk 0:02:44]} 12. Nxf3 {[%clk 0:02:50]} 12...
f5 {[%clk 0:02:43.5]} 13. exf5 {[%clk 0:02:49.7]} 13... Bxf5 {[%clk 0:02:45.4]}
14. Bc4+ {[%clk 0:02:41.9]} 14... Kh7 {[%clk 0:02:38.1]} 15. Bd5 {[%clk
0:02:43.2]} 15... Bf6 {[%clk 0:02:28.7]} 16. Re1 {[%clk 0:02:39.1]} 16... Qd7
{[%clk 0:02:26.1]} 17. Nd2 {[%clk 0:02:29]} 17... Rae8 {[%clk 0:02:24.4]} 18.
Ne4 {[%clk 0:02:30.4]} 18... Bd8 {[%clk 0:02:23.3]} 19. b4 {[%clk 0:02:28.2]}
19... Ne7 {[%clk 0:02:18.8]} 20. Bxb7 {[%clk 0:01:47.2]} 20... Qb5 {[%clk
0:02:17.1]} 21. Ba8 {[%clk 0:01:34.9]} 21... Qb8 {[%clk 0:02:17.5]} 22. Qf3
{[%clk 0:01:32.7]} 22... Bg6 {[%clk 0:02:07.7]} 23. Qg4 {[%clk 0:01:04.2]} 23...
Qxa8 {[%clk 0:02:08.9]} 24. h4 {[%clk 0:00:58.6]} 24... Nd5 {[%clk 0:02:07.7]}
25. h5 {[%clk 0:00:59.6]} 25... Bf5 {[%clk 0:02:08.9]} 26. Qe2 {[%clk
0:01:00.9]} 26... Nf6 {[%clk 0:02:04.8]} 27. c4 {[%clk 0:00:55.9]} 27... Kh8
{[%clk 0:02:03.5]} 28. Bh2 {[%clk 0:00:43.9]} 28... Bg4 {[%clk 0:01:58.7]} 29.
f3 {[%clk 0:00:45.3]} 29... Bxh5 {[%clk 0:02:00]} 30. b5 {[%clk 0:00:46.9]}
30... Nxe4 {[%clk 0:01:57.8]} 31. dxe4 {[%clk 0:00:48.8]} 31... c6 {[%clk
0:01:59]} 32. a4 {[%clk 0:00:48.9]} 32... Bb6+ {[%clk 0:02:00.4]} 33. Kh1 {[%clk
0:00:50.5]} 33... cxb5 {[%clk 0:02:02.3]} 34. cxb5 {[%clk 0:00:45.4]} 34... d5
{[%clk 0:02:01.2]} 35. Rad1 {[%clk 0:00:39.1]} 35... Bd4 {[%clk 0:02:00.8]} 36.
Bg1 {[%clk 0:00:36.3]} 36... Bxg1 {[%clk 0:02:01]} 37. Kxg1 {[%clk 0:00:38.2]}
37... d4 {[%clk 0:01:59.9]} 38. Rc1 {[%clk 0:00:39.3]} 38... Rc8 {[%clk
0:02:00.3]} 39. Qa2 {[%clk 0:00:40.5]} 39... Bf7 {[%clk 0:01:58.3]} 40. Qa3
{[%clk 0:00:41.5]} 40... Rxc1 {[%clk 0:01:59.8]} 41. Rxc1 {[%clk 0:00:40.3]}
41... Rc8 {[%clk 0:02:01.4]} 42. Rc5 {[%clk 0:00:40.5]} 42... d3 {[%clk
0:01:50.1]} 43. Kf2 {[%clk 0:00:40.6]} 43... d2 {[%clk 0:01:44.6]} 44. Ke2
{[%clk 0:00:24.5]} 44... Rxc5 {[%clk 0:01:45.2]} 45. Qxc5 {[%clk 0:00:24.7]}
45... Qd8 {[%clk 0:01:46.8]} 46. Qc2 {[%clk 0:00:21.9]} 46... Qd4 {[%clk
0:01:28]} 47. Qxd2 {[%clk 0:00:19.6]} 47... Qxa4 {[%clk 0:01:28.7]} 48. Qb2
{[%clk 0:00:18]} 48... Bc4+ {[%clk 0:01:27.6]} 49. Kf2 {[%clk 0:00:13.9]} 49...
Qxb5 {[%clk 0:01:28.8]} 50. Qa3 {[%clk 0:00:15.5]} 50... Kh7 {[%clk 0:01:29.9]}
51. Qe7 {[%clk 0:00:15]} 51... a5 {[%clk 0:01:27.5]} 52. g4 {[%clk 0:00:16.3]}
52... Qb6+ {[%clk 0:01:27.4]} 53. Kg3 {[%clk 0:00:17.2]} 53... Qf6 {[%clk
0:01:29]} 54. Qc5 {[%clk 0:00:17]} 54... Be2 {[%clk 0:01:30.1]} 0-1

[Event "*** Titled Tuesday Blitz"]
[Site "Chess.com"]
[Date "2019.05.07"]
[Round "1"]
[White "Orest_Vovk"]
[Black "mikhaillushenkov"]
[Result "1-0"]
[WhiteElo "2440"]
[BlackElo "2762"]
[TimeControl "180+2"]
[EndTime "13:09:02 PDT"]
[Termination "Orest_Vovk won by resignation"]

1. h4 {[%clk 0:03:00.9]} 1... d5 {[%clk 0:02:56.7]} 2. h5 {[%clk 0:03:02]} 2...
h6 {[%clk 0:02:56.4]} 3. e4 {[%clk 0:03:02.5]} 3... dxe4 {[%clk 0:02:51.6]} 4.
Nc3 {[%clk 0:03:03.5]} 4... Nf6 {[%clk 0:02:52.1]} 5. Qe2 {[%clk 0:03:04.7]}
5... Qd4 {[%clk 0:02:42]} 6. Rh4 {[%clk 0:03:03.1]} 6... Nc6 {[%clk 0:02:27.8]}
7. Nxe4 {[%clk 0:03:00.8]} 7... Nxe4 {[%clk 0:02:26.2]} 8. Qxe4 {[%clk 0:02:48]}
8... Qxe4+ {[%clk 0:02:26.7]} 9. Rxe4 {[%clk 0:02:49.9]} 9... Bf5 {[%clk
0:02:27.9]} 10. Rc4 {[%clk 0:02:50.8]} 10... e5 {[%clk 0:02:27.4]} 11. d3 {[%clk
0:02:46.5]} 11... O-O-O {[%clk 0:02:21.7]} 12. g3 {[%clk 0:02:42.8]} 12... Be6
{[%clk 0:02:15.3]} 13. Bh3 {[%clk 0:02:37.7]} 13... f5 {[%clk 0:02:15.3]} 14.
Ra4 {[%clk 0:02:35.3]} 14... b5 {[%clk 0:02:13.2]} 15. Re4 {[%clk 0:02:10.4]}
15... fxe4 {[%clk 0:02:02.2]} 16. Bxe6+ {[%clk 0:02:10.7]} 16... Kb7 {[%clk
0:02:03.5]} 17. dxe4 {[%clk 0:02:12.3]} 17... Nd4 {[%clk 0:02:04.6]} 18. Bb3
{[%clk 0:02:08.6]} 18... Nxb3 {[%clk 0:02:05.7]} 19. axb3 {[%clk 0:02:09.1]}
19... Bc5 {[%clk 0:02:07]} 20. Ke2 {[%clk 0:01:46.5]} 20... Rhf8 {[%clk
0:02:05.3]} 21. Be3 {[%clk 0:01:43.2]} 21... Bxe3 {[%clk 0:02:04.3]} 22. Kxe3
{[%clk 0:01:45.1]} 22... Rd6 {[%clk 0:02:03.6]} 23. Ne2 {[%clk 0:01:39.7]} 23...
b4 {[%clk 0:01:58.7]} 24. f4 {[%clk 0:01:36.1]} 24... Rc6 {[%clk 0:01:58.3]} 25.
c4 {[%clk 0:01:34.4]} 25... bxc3 {[%clk 0:01:56.6]} 26. bxc3 {[%clk 0:01:31.6]}
26... Re8 {[%clk 0:01:54.4]} 27. Ra5 {[%clk 0:01:28.5]} 27... Rce6 {[%clk
0:01:41.5]} 28. f5 {[%clk 0:01:17.1]} 28... Rb6 {[%clk 0:01:41]} 29. b4 {[%clk
0:01:15.5]} 29... Rc6 {[%clk 0:01:41.8]} 30. Rd5 {[%clk 0:01:11.6]} 30... Kc8
{[%clk 0:01:37.7]} 31. b5 {[%clk 0:00:57.3]} 31... Rc4 {[%clk 0:01:37.5]} 32.
Kd3 {[%clk 0:00:55.3]} 32... Ra4 {[%clk 0:01:37.4]} 33. Ng1 {[%clk 0:00:49.2]}
33... Ra2 {[%clk 0:01:30]} 34. Nf3 {[%clk 0:00:49.4]} 34... Rg2 {[%clk
0:01:30.6]} 35. Nxe5 {[%clk 0:00:49.6]} 35... Rxg3+ {[%clk 0:01:31.8]} 36. Kd4
{[%clk 0:00:49.4]} 36... Rh3 {[%clk 0:01:32]} 37. Ng6 {[%clk 0:00:31.9]} 37...
Rxh5 {[%clk 0:01:29.3]} 38. Nf4 {[%clk 0:00:30.9]} 38... Rh4 {[%clk 0:01:29.3]}
39. Ne6 {[%clk 0:00:31.9]} 39... Rh1 {[%clk 0:01:24.3]} 40. Nxg7 {[%clk
0:00:25.3]} 40... Rd1+ {[%clk 0:01:22.1]} 41. Kc5 {[%clk 0:00:26.2]} 41... Rxd5+
{[%clk 0:01:18.7]} 42. Kxd5 {[%clk 0:00:27.4]} 42... Rh8 {[%clk 0:01:17.6]} 43.
Nh5 {[%clk 0:00:20.1]} 43... Kd7 {[%clk 0:01:17.9]} 44. e5 {[%clk 0:00:21.2]}
44... Ke7 {[%clk 0:01:18.8]} 45. e6 {[%clk 0:00:19.9]} 45... Rg8 {[%clk
0:01:18.3]} 46. f6+ {[%clk 0:00:20.7]} 46... Kd8 {[%clk 0:01:18.6]} 47. f7
{[%clk 0:00:20.3]} 47... Rg5+ {[%clk 0:01:18.7]} 48. Ke4 {[%clk 0:00:17.3]}
48... Ke7 {[%clk 0:01:20.1]} 49. Nf6 {[%clk 0:00:18]} 49... Rg6 {[%clk
0:01:12.1]} 50. Nd5+ {[%clk 0:00:18.6]} 50... Kf8 {[%clk 0:01:13.1]} 51. Nxc7
{[%clk 0:00:18.8]} 51... h5 {[%clk 0:01:12.6]} 52. Kf5 {[%clk 0:00:19.8]} 52...
Rg1 {[%clk 0:01:13.1]} 53. Nd5 {[%clk 0:00:19.4]} 53... h4 {[%clk 0:01:13.3]}
54. Kf6 {[%clk 0:00:19.8]} 54... Rf1+ {[%clk 0:01:14.3]} 55. Kg6 {[%clk
0:00:21.1]} 55... Rg1+ {[%clk 0:01:09.7]} 56. Kf6 {[%clk 0:00:22.3]} 56... Rf1+
{[%clk 0:01:10]} 57. Kg6 {[%clk 0:00:23.6]} 57... Re1 {[%clk 0:01:11.6]} 58. e7+
{[%clk 0:00:22.1]} 1-0

[Event "*** Titled Tuesday Blitz"]
[Site "Chess.com"]
[Date "2019.05.07"]
[Round "1"]
[White "H3nriqueTV"]
[Black "biostatistician"]
[Result "0-1"]
[WhiteElo "2014"]
[BlackElo "2514"]
[TimeControl "180+2"]
[EndTime "13:09:05 PDT"]
[Termination "biostatistician won by resignation"]

1. e4 {[%clk 0:03:01.1]} 1... e6 {[%clk 0:03:00.9]} 2. d4 {[%clk 0:03:01.9]}
2... d5 {[%clk 0:03:02.8]} 3. e5 {[%clk 0:03:03]} 3... b6 {[%clk 0:03:03.8]} 4.
c3 {[%clk 0:03:03.3]} 4... Qd7 {[%clk 0:03:04.1]} 5. Nf3 {[%clk 0:03:00.3]} 5...
Ba6 {[%clk 0:03:05.2]} 6. Bd3 {[%clk 0:02:56.3]} 6... Bxd3 {[%clk 0:03:06.4]} 7.
Qxd3 {[%clk 0:02:57.3]} 7... c5 {[%clk 0:03:08.3]} 8. O-O {[%clk 0:02:57.5]}
8... Nc6 {[%clk 0:03:09.7]} 9. Bf4 {[%clk 0:02:56]} 9... Nge7 {[%clk 0:03:10]}
10. Nbd2 {[%clk 0:02:54.1]} 10... Rc8 {[%clk 0:03:09.9]} 11. a3 {[%clk
0:02:44.7]} 11... Ng6 {[%clk 0:03:04]} 12. Bg3 {[%clk 0:02:45.1]} 12... c4
{[%clk 0:02:50.3]} 13. Qe2 {[%clk 0:02:37.6]} 13... b5 {[%clk 0:02:51.7]} 14. h3
{[%clk 0:02:32.5]} 14... a5 {[%clk 0:02:51]} 15. Nh2 {[%clk 0:02:31.6]} 15...
Nge7 {[%clk 0:02:44.4]} 16. f4 {[%clk 0:02:31.1]} 16... h5 {[%clk 0:02:42.5]}
17. Nhf3 {[%clk 0:02:25.9]} 17... Nf5 {[%clk 0:02:43.1]} 18. Bf2 {[%clk
0:02:26.9]} 18... h4 {[%clk 0:02:44.5]} 19. Rfe1 {[%clk 0:02:18.1]} 19... Be7
{[%clk 0:02:45.4]} 20. Nf1 {[%clk 0:02:19.3]} 20... Bd8 {[%clk 0:02:27.5]} 21.
Ne3 {[%clk 0:02:20.2]} 21... Nce7 {[%clk 0:02:24.1]} 22. Ng5 {[%clk 0:01:55.5]}
22... Nxe3 {[%clk 0:02:21.5]} 23. Bxe3 {[%clk 0:01:55.6]} 23... Nf5 {[%clk
0:02:22.7]} 24. Bf2 {[%clk 0:01:53.7]} 24... Bxg5 {[%clk 0:02:16.3]} 25. fxg5
{[%clk 0:01:54.5]} 25... Qe7 {[%clk 0:02:17.9]} 26. Qg4 {[%clk 0:01:55.6]} 26...
g6 {[%clk 0:02:16.8]} 27. Be3 {[%clk 0:01:24.9]} 27... Nxe3 {[%clk 0:02:09.5]}
28. Rxe3 {[%clk 0:01:25.8]} 28... Rh5 {[%clk 0:02:11.4]} 29. Rf1 {[%clk
0:01:19.9]} 29... Rxg5 {[%clk 0:02:03.5]} 30. Qf4 {[%clk 0:01:18.3]} 30... Rf5
{[%clk 0:02:03.8]} 31. Qh6 {[%clk 0:01:17.9]} 31... Qg5 {[%clk 0:01:39.6]} 32.
Qxg5 {[%clk 0:00:45.7]} 32... Rxg5 {[%clk 0:01:41.5]} 33. Rf4 {[%clk 0:00:47.3]}
33... Rh5 {[%clk 0:01:40.9]} 34. Ref3 {[%clk 0:00:47.9]} 34... Rh7 {[%clk
0:01:38.1]} 35. Rg4 {[%clk 0:00:48]} 35... Ke7 {[%clk 0:01:38.8]} 36. Rf6 {[%clk
0:00:46]} 36... Rch8 {[%clk 0:01:39.7]} 37. Kf2 {[%clk 0:00:47.1]} 37... Rh5
{[%clk 0:01:39]} 38. Rgf4 {[%clk 0:00:42.6]} 38... R8h7 {[%clk 0:01:40.2]} 39.
Ke2 {[%clk 0:00:39.5]} 39... Rg5 {[%clk 0:01:41.4]} 40. Kf2 {[%clk 0:00:40.8]}
40... Rg3 {[%clk 0:01:41.6]} 41. Rf3 {[%clk 0:00:41.1]} 41... Rxf3+ {[%clk
0:01:40.9]} 42. Kxf3 {[%clk 0:00:42.4]} 42... Rh5 {[%clk 0:01:37.4]} 43. Kg4
{[%clk 0:00:40.2]} 43... Kf8 {[%clk 0:01:38.7]} 44. Rf4 {[%clk 0:00:39.1]} 44...
Kg7 {[%clk 0:01:38.8]} 45. Rf2 {[%clk 0:00:35.5]} 45... Rh8 {[%clk 0:01:37.1]}
46. Rf1 {[%clk 0:00:35.3]} 46... b4 {[%clk 0:01:37.5]} 47. axb4 {[%clk 0:00:36]}
47... axb4 {[%clk 0:01:39.4]} 48. Ra1 {[%clk 0:00:37.5]} 48... Rb8 {[%clk
0:01:35.2]} 49. Rc1 {[%clk 0:00:35.2]} 49... bxc3 {[%clk 0:01:34.9]} 50. bxc3
{[%clk 0:00:37.1]} 50... Rb2 {[%clk 0:01:35.2]} 51. Kxh4 {[%clk 0:00:28.2]}
51... Rxg2 {[%clk 0:01:35.6]} 52. Rf1 {[%clk 0:00:23.4]} 52... Rc2 {[%clk
0:01:34.3]} 53. Rf3 {[%clk 0:00:24.2]} 53... Rd2 {[%clk 0:01:32.2]} 54. Kg4
{[%clk 0:00:24.8]} 54... Rd3 {[%clk 0:01:23.7]} 55. Rxd3 {[%clk 0:00:21.2]}
55... cxd3 {[%clk 0:01:25.1]} 56. Kf3 {[%clk 0:00:23.1]} 56... Kh6 {[%clk
0:01:26.3]} 57. Ke3 {[%clk 0:00:24.6]} 57... Kg5 {[%clk 0:01:27.9]} 58. Kxd3
{[%clk 0:00:26]} 58... Kh4 {[%clk 0:01:29.5]} 59. c4 {[%clk 0:00:27.7]} 59...
dxc4+ {[%clk 0:01:30.8]} 60. Kxc4 {[%clk 0:00:29.2]} 60... Kxh3 {[%clk
0:01:32.4]} 61. d5 {[%clk 0:00:30.9]} 61... exd5+ {[%clk 0:01:33.7]} 62. Kxd5
{[%clk 0:00:32.8]} 62... Kg4 {[%clk 0:01:25.8]} 63. e6 {[%clk 0:00:32.8]} 63...
fxe6+ {[%clk 0:01:26.8]} 64. Kxe6 {[%clk 0:00:34.1]} 64... g5 {[%clk 0:01:28.3]}
65. Ke5 {[%clk 0:00:35.1]} 65... Kf3 {[%clk 0:01:29.4]} 0-1

[Event "*** Titled Tuesday Blitz"]
[Site "Chess.com"]
[Date "2019.05.07"]
[Round "1"]
[White "Der_Honigdachs"]
[Black "Storne89"]
[Result "1-0"]
[WhiteElo "2351"]
[BlackElo "2631"]
[TimeControl "180+2"]
[EndTime "13:09:19 PDT"]
[Termination "Der_Honigdachs won by resignation"]

1. d4 {[%clk 0:03:01.7]} 1... Nf6 {[%clk 0:03:00.2]} 2. c4 {[%clk 0:03:03]} 2...
e6 {[%clk 0:03:00.8]} 3. Nc3 {[%clk 0:03:03.7]} 3... Bb4 {[%clk 0:03:01.6]} 4.
g3 {[%clk 0:03:03.8]} 4... O-O {[%clk 0:02:56.7]} 5. Bg2 {[%clk 0:03:04.5]} 5...
Bxc3+ {[%clk 0:02:51.7]} 6. bxc3 {[%clk 0:03:04.1]} 6... d6 {[%clk 0:02:52.2]}
7. Qd3 {[%clk 0:02:51.8]} 7... Nc6 {[%clk 0:02:51.7]} 8. e4 {[%clk 0:02:50.1]}
8... Na5 {[%clk 0:02:50.5]} 9. Ne2 {[%clk 0:02:34.9]} 9... e5 {[%clk 0:02:49.7]}
10. f4 {[%clk 0:02:33.4]} 10... b6 {[%clk 0:02:47.8]} 11. c5 {[%clk 0:02:27.1]}
11... bxc5 {[%clk 0:02:40.6]} 12. O-O {[%clk 0:02:18.8]} 12... Nd7 {[%clk
0:01:34.3]} 13. fxe5 {[%clk 0:02:08.2]} 13... dxe5 {[%clk 0:01:34.8]} 14. d5
{[%clk 0:02:09]} 14... c6 {[%clk 0:01:22.3]} 15. Ba3 {[%clk 0:01:47.4]} 15...
Rb8 {[%clk 0:00:53.2]} 16. Rad1 {[%clk 0:01:44.4]} 16... cxd5 {[%clk 0:00:52.2]}
17. exd5 {[%clk 0:01:46.3]} 17... Qb6 {[%clk 0:00:46.4]} 18. Rb1 {[%clk
0:01:35.5]} 18... Qd6 {[%clk 0:00:47.5]} 19. Rxb8 {[%clk 0:01:35.7]} 19... Nxb8
{[%clk 0:00:47.8]} 20. Be4 {[%clk 0:01:35.8]} 20... g6 {[%clk 0:00:47.8]} 21.
Qe3 {[%clk 0:01:35.2]} 21... Nb7 {[%clk 0:00:48.3]} 22. c4 {[%clk 0:01:32.1]}
22... f6 {[%clk 0:00:49.5]} 23. Nc3 {[%clk 0:01:32.6]} 23... Bd7 {[%clk
0:00:48.8]} 24. Rb1 {[%clk 0:01:30.9]} 24... Qc7 {[%clk 0:00:50]} 25. d6 {[%clk
0:01:27]} 25... Nxd6 {[%clk 0:00:48.7]} 26. Qxc5 {[%clk 0:01:27.9]} 26... Qxc5+
{[%clk 0:00:48]} 27. Bxc5 {[%clk 0:01:29.8]} 27... Nxe4 {[%clk 0:00:49]} 28.
Nxe4 {[%clk 0:01:30.5]} 28... Rc8 {[%clk 0:00:48.3]} 29. Nxf6+ {[%clk
0:01:30.9]} 29... Kf7 {[%clk 0:00:49.7]} 30. Rxb8 {[%clk 0:01:27.5]} 30... Rxb8
{[%clk 0:00:47.5]} 31. Nxd7 {[%clk 0:01:28.5]} 31... Rb1+ {[%clk 0:00:46.1]} 32.
Kg2 {[%clk 0:01:28.1]} 32... Ke6 {[%clk 0:00:47.4]} 33. Nf8+ {[%clk 0:01:26.8]}
33... Kf5 {[%clk 0:00:48.2]} 34. Nxh7 {[%clk 0:01:15]} 34... a6 {[%clk
0:00:42.8]} 35. h3 {[%clk 0:01:07.8]} 35... Rb2+ {[%clk 0:00:43]} 36. Kf3 {[%clk
0:01:08.2]} 36... Rxa2 {[%clk 0:00:40.5]} 37. g4+ {[%clk 0:01:08.5]} 37... Ke6
{[%clk 0:00:40.3]} 38. Ng5+ {[%clk 0:01:08.6]} 38... Kd7 {[%clk 0:00:41.2]} 39.
Ke4 {[%clk 0:01:09.6]} 39... Kc6 {[%clk 0:00:36]} 40. Be3 {[%clk 0:01:02.9]}
40... Re2 {[%clk 0:00:34]} 41. Nf7 {[%clk 0:01:01.1]} 41... a5 {[%clk
0:00:28.3]} 42. Nxe5+ {[%clk 0:01:02.1]} 42... Kd6 {[%clk 0:00:29.9]} 43. c5+
{[%clk 0:00:55.1]} 43... Ke6 {[%clk 0:00:29.4]} 44. c6 {[%clk 0:00:52.5]} 44...
Kd6 {[%clk 0:00:25.7]} 45. h4 {[%clk 0:00:46.1]} 45... a4 {[%clk 0:00:25.1]} 46.
h5 {[%clk 0:00:44.9]} 46... gxh5 {[%clk 0:00:23.8]} 47. gxh5 {[%clk 0:00:46.8]}
47... Rh2 {[%clk 0:00:20.3]} 48. h6 {[%clk 0:00:46.9]} 48... Kc7 {[%clk
0:00:21.9]} 49. Bf4 {[%clk 0:00:46.4]} 49... Rh1 {[%clk 0:00:19.8]} 50. Kd5
{[%clk 0:00:47.4]} 50... Rd1+ {[%clk 0:00:08.9]} 51. Kc5 {[%clk 0:00:48.4]}
51... a3 {[%clk 0:00:07.7]} 52. Nc4+ {[%clk 0:00:49.1]} 52... Kc8 {[%clk
0:00:08.6]} 53. Nb6+ {[%clk 0:00:49.6]} 53... Kd8 {[%clk 0:00:08.2]} 54. c7+
{[%clk 0:00:51]} 1-0

[Event "*** Titled Tuesday Blitz"]
[Site "Chess.com"]
[Date "2019.05.07"]
[Round "1"]
[White "HrvojeZagreb"]
[Black "Sutormin_DA"]
[Result "0-1"]
[WhiteElo "2034"]
[BlackElo "2516"]
[TimeControl "180+2"]
[EndTime "13:09:22 PDT"]
[Termination "Sutormin_DA won by resignation"]

1. d4 {[%clk 0:03:01.4]} 1... Nf6 {[%clk 0:03:00]} 2. Bf4 {[%clk 0:03:01.3]}
2... g6 {[%clk 0:03:01.1]} 3. Nc3 {[%clk 0:03:01.5]} 3... d5 {[%clk 0:03:01.3]}
4. e3 {[%clk 0:03:02]} 4... Bg7 {[%clk 0:03:01.4]} 5. h4 {[%clk 0:03:03.1]} 5...
h5 {[%clk 0:02:59.6]} 6. Nf3 {[%clk 0:03:02.9]} 6... b6 {[%clk 0:03:00.2]} 7. a4
{[%clk 0:03:01.7]} 7... a6 {[%clk 0:03:00.6]} 8. a5 {[%clk 0:03:01.2]} 8... b5
{[%clk 0:03:01.4]} 9. Be2 {[%clk 0:02:59.8]} 9... O-O {[%clk 0:03:00.7]} 10. Ne5
{[%clk 0:02:58.8]} 10... Be6 {[%clk 0:02:27.6]} 11. g4 {[%clk 0:02:58.6]} 11...
hxg4 {[%clk 0:02:14.6]} 12. Nxg4 {[%clk 0:02:53.3]} 12... Nxg4 {[%clk
0:01:59.2]} 13. Bxg4 {[%clk 0:02:55.2]} 13... Bxg4 {[%clk 0:01:50.9]} 14. Qxg4
{[%clk 0:02:57.1]} 14... Nd7 {[%clk 0:01:48.7]} 15. h5 {[%clk 0:02:57.4]} 15...
Nf6 {[%clk 0:01:48.9]} 16. Qg2 {[%clk 0:02:58.3]} 16... c6 {[%clk 0:01:27.6]}
17. hxg6 {[%clk 0:02:57.1]} 17... Qd7 {[%clk 0:00:37.6]} 18. O-O-O {[%clk
0:02:40.7]} 18... Qf5 {[%clk 0:00:35.8]} 19. gxf7+ {[%clk 0:02:33.8]} 19... Rxf7
{[%clk 0:00:37.4]} 20. Rdg1 {[%clk 0:02:31.9]} 20... Kf8 {[%clk 0:00:36.9]} 21.
Be5 {[%clk 0:02:13.6]} 21... Ke8 {[%clk 0:00:35.8]} 22. Ne2 {[%clk 0:01:54.2]}
22... Bf8 {[%clk 0:00:34.3]} 23. Ng3 {[%clk 0:01:51.6]} 23... Qg6 {[%clk
0:00:33.5]} 24. Bxf6 {[%clk 0:01:46.5]} 24... Qxf6 {[%clk 0:00:32.3]} 25. f4
{[%clk 0:01:42.4]} 25... Rc8 {[%clk 0:00:30.4]} 26. b4 {[%clk 0:01:40.4]} 26...
Kd7 {[%clk 0:00:29]} 27. Qh3+ {[%clk 0:01:39.7]} 27... e6 {[%clk 0:00:28]} 28.
Nh5 {[%clk 0:01:36.7]} 28... Qf5 {[%clk 0:00:25]} 29. Qxf5 {[%clk 0:01:29.7]}
29... Rxf5 {[%clk 0:00:26.9]} 30. Rg6 {[%clk 0:01:29.6]} 30... Bxb4 {[%clk
0:00:24.2]} 31. Nf6+ {[%clk 0:01:26.3]} 31... Kd6 {[%clk 0:00:25.7]} 32. Rh7
{[%clk 0:01:23.8]} 32... c5 {[%clk 0:00:27.1]} 33. Ra7 {[%clk 0:01:14.5]} 33...
cxd4 {[%clk 0:00:25.4]} 34. exd4 {[%clk 0:01:14.8]} 34... Rxf4 {[%clk
0:00:23.6]} 35. Rxa6+ {[%clk 0:01:14.6]} 35... Ke7 {[%clk 0:00:24.9]} 36. Nh5
{[%clk 0:01:10.2]} 36... Rf1+ {[%clk 0:00:21.9]} 37. Kb2 {[%clk 0:01:11.2]}
37... Bc3+ {[%clk 0:00:23.8]} 38. Kb3 {[%clk 0:01:00.3]} 38... Bxd4 {[%clk
0:00:25.7]} 39. Ra7+ {[%clk 0:00:57.4]} 39... Bxa7 {[%clk 0:00:24.2]} 40. Rg7+
{[%clk 0:00:58.7]} 40... Rf7 {[%clk 0:00:23.9]} 41. Rg2 {[%clk 0:00:57.5]} 41...
d4 {[%clk 0:00:24.7]} 42. Ng3 {[%clk 0:00:57.2]} 42... Rc3+ {[%clk 0:00:25.6]}
43. Kb2 {[%clk 0:00:57.7]} 43... Re3 {[%clk 0:00:26]} 44. Nh5 {[%clk 0:00:54.8]}
44... e5 {[%clk 0:00:27.2]} 45. Rg6 {[%clk 0:00:53.2]} 45... Rh3 {[%clk
0:00:22.9]} 46. Ra6 {[%clk 0:00:53.2]} 46... Kf8 {[%clk 0:00:23.6]} 47. Nf6
{[%clk 0:00:51.7]} 47... Bc5 {[%clk 0:00:22.2]} 48. Ne4 {[%clk 0:00:51.8]} 48...
Ba3+ {[%clk 0:00:22.4]} 49. Ka2 {[%clk 0:00:51.9]} 49... b4 {[%clk 0:00:23.8]}
50. Ra8+ {[%clk 0:00:51.8]} 50... Kg7 {[%clk 0:00:24.5]} 51. a6 {[%clk
0:00:53.7]} 51... Rh2 {[%clk 0:00:25.2]} 52. Kb3 {[%clk 0:00:53]} 52... Rh8
{[%clk 0:00:26.5]} 53. Rxh8 {[%clk 0:00:48.8]} 53... Kxh8 {[%clk 0:00:28.4]} 54.
Nd6 {[%clk 0:00:48.8]} 54... Ra7 {[%clk 0:00:28.4]} 55. Nc4 {[%clk 0:00:48.4]}
55... e4 {[%clk 0:00:27.7]} 56. Ne5 {[%clk 0:00:50.3]} 56... Rxa6 {[%clk
0:00:28.1]} 57. Nf7+ {[%clk 0:00:50.9]} 57... Kg7 {[%clk 0:00:28.9]} 58. Ng5
{[%clk 0:00:52.8]} 58... e3 {[%clk 0:00:30.2]} 59. Nf3 {[%clk 0:00:54]} 59... e2
{[%clk 0:00:31.5]} 60. Ne1 {[%clk 0:00:55.9]} 60... Rc6 {[%clk 0:00:32.5]} 0-1